bitfinex/quotes_ETHUSD_20250823
["timestamp","ask_amount","ask_price","bid_price","bid_amount"]
[1755955325630,13.92109257,4726.9,4726.8,0.004]
[1755955326107,14.49158405,4726.9,4726.8,0.004]
[1755955326441,13.92109257,4726.9,4726.8,0.004]
[1755955326598,14.03999888,4726.9,4726.8,0.004]
[1755955327406,13.70894495,4726.9,4726.8,0.004]
[1755955327933,5.77568569,4726.6,4726.5,0.004]
[1755955328098,11.43019025,4726.6,4726.5,0.004]
[1755955328401,12.01069025,4726.6,4726.5,0.004]
[1755955329430,10.8701518,4726.6,4726.5,0.004]
[1755955329927,10.9549808,4726.6,4726.5,0.004]
[1755955330223,13.0968588,4726.6,4726.5,0.004]
[1755955330714,13.4279998,4726.6,4726.5,0.004]
[1755955331229,9.8859998,4726.6,4726.5,0.004]
[1755955331402,13.4289998,4726.6,4726.5,0.004]
[1755955332198,14.18769715,4726.6,4726.5,0.004]
[1755955333004,13.98849089,4726.6,4726.5,0.004]
[1755955333329,14.18605688,4726.6,4726.5,0.004]
[1755955333506,13.42735953,4726.6,4726.5,0.004]
[1755955333711,13.42730967,4726.6,4726.5,0.004]
[1755955338434,9.71230967,4726.6,4726.5,0.004]
[1755955338605,13.25530967,4726.6,4726.5,0.004]
[1755955339733,13.42730967,4726.6,4726.5,0.004]
[1755955341136,13.09616867,4726.6,4726.5,0.004]
[1755955342333,12.89865254,4726.6,4726.5,0.004]
[1755955342540,13.09554651,4726.6,4726.5,0.004]
[1755955343105,12.92354651,4726.6,4726.5,0.004]
[1755955343309,12.9235505,4726.6,4726.5,0.004]
[1755955343921,13.0955505,4726.6,4726.5,0.004]
[1755955344824,13.42668972,4726.6,4726.5,0.004]
[1755955345719,13.25468972,4726.6,4726.5,0.004]
[1755955346943,14.52768972,4726.6,4726.5,0.004]
[1755955347151,13.25468972,4726.6,4726.5,0.004]
[1755955349467,13.71048707,4726.6,4726.5,0.004]
[1755955349945,13.80948707,4726.6,4726.5,0.004]
[1755955351454,20.80148707,4726.6,4726.5,0.004]
[1755955351972,20.04331435,4726.6,4726.5,0.004]
[1755955352469,20.04355025,4726.6,4726.5,0.004]
[1755955352642,20.04362787,4726.6,4726.5,0.004]
[1755955354739,19.94462787,4726.6,4726.5,0.004]
[1755955355464,13.27056308,4726.4,4726.3,0.004]
[1755955355662,20.78405904,4726.4,4726.3,0.004]
[1755955355841,20.78405904,4726.4,4726.3,0.7681]
[1755955356041,20.78405904,4726.4,4726.3,0.3109]
[1755955356243,20.78405904,4726.4,4726.3,0.7681]
[1755955356542,22.84173602,4726.4,4726.3,0.7681]
[1755955356742,28.38993602,4726.4,4726.3,0.7681]
[1755955357262,5.77581998,4726.3,4726.1,0.004]
[1755955357448,10.70866071,4726.2,4726.1,0.004]
[1755955357967,10.79349171,4726.2,4726.1,0.004]
[1755955358151,12.93536971,4726.2,4726.1,0.004]
[1755955359773,13.04127412,4726.2,4726.1,0.004]
[1755955360186,19.71957412,4726.2,4726.1,0.004]
[1755955360338,19.71957412,4726.2,4726.1,0.7681]
[1755955360679,20.05072781,4726.2,4726.1,0.7681]
[1755955361038,19.93214896,4726.2,4726.1,0.7681]
[1755955361359,19.94629822,4726.2,4726.1,0.7681]
[1755955361780,19.94626493,4726.2,4726.1,0.7681]
[1755955361963,19.94626493,4726.2,4726.1,0.3109]
[1755955362445,19.94626493,4726.2,4726.1,0.7681]
[1755955363376,19.94621704,4726.2,4726.1,0.7681]
[1755955366244,21.57421704,4726.2,4726.1,0.7681]
[1755955366780,21.57410949,4726.2,4726.1,0.7681]
[1755955367254,21.57410949,4726.2,4726.1,0.7491]
[1755955368489,5.77590952,4726.1,4726.0,0.004]
[1755955368644,8.88956957,4726.1,4726.0,0.004]
[1755955368842,8.88956957,4726.1,4726.0,0.3046]
[1755955369065,8.88956957,4726.1,4726.0,0.742]
[1755955369274,9.35076957,4726.1,4726.0,0.742]
[1755955370153,8.37548412,4726.1,4726.0,0.742]
[1755955370353,10.49139364,4726.1,4726.0,0.742]
[1755955370775,10.80664019,4726.1,4726.0,0.004]
[1755955370962,5.77604384,4725.8,4725.7,0.004]
[1755955371165,21.0985603,4725.8,4725.7,0.004]
[1755955371366,21.09850352,4725.8,4725.7,0.004]
[1755955371550,21.09838891,4725.8,4725.7,0.004]
[1755955372256,21.53978891,4725.8,4725.7,0.004]
[1755955372452,23.59746589,4725.8,4725.7,0.004]
[1755955372641,23.92865933,4725.8,4725.7,0.004]
[1755955373884,20.38565933,4725.8,4725.7,0.004]
[1755955374066,20.38565933,4725.8,4725.7,0.742]
[1755955374067,23.61545933,4725.8,4725.7,0.742]
[1755955374253,24.75525868,4725.8,4725.7,0.3046]
[1755955374454,23.72489289,4725.8,4725.7,0.004]
[1755955374666,2.77631253,4725.2,4725.1,0.004]
[1755955374982,22.8221715,4725.2,4725.1,0.004]
[1755955375187,23.27882577,4725.2,4725.1,0.742]
[1755955375387,23.30760379,4725.2,4725.1,0.742]
[1755955375686,25.44948179,4725.2,4725.1,0.742]
[1755955377100,25.44927045,4725.2,4725.1,0.742]
[1755955378303,25.90026822,4725.2,4725.1,0.742]
[1755955378978,30.98826822,4725.2,4725.1,0.742]
[1755955379404,30.53724629,4725.2,4725.1,0.004]
[1755955380059,30.418557,4725.2,4725.1,0.004]
[1755955380260,30.53712562,4725.2,4725.1,0.004]
[1755955380776,30.53713266,4725.2,4725.1,0.004]
[1755955380971,31.29696727,4725.2,4725.1,0.004]
[1755955381591,31.30086727,4725.2,4725.1,0.004]
[1755955381763,20.0423448,4725.2,4725.1,0.004]
[1755955381963,30.53713266,4725.2,4725.1,0.742]
[1755955382494,30.53675933,4725.2,4725.1,0.742]
[1755955384981,30.63575933,4725.2,4725.1,0.004]
[1755955386969,31.02445933,4725.2,4725.1,0.004]
[1755955387502,31.77551124,4725.2,4725.1,0.004]
[1755955388299,30.53675933,4725.2,4725.1,0.004]
[1755955388517,30.02284529,4725.2,4725.1,0.004]
[1755955388717,30.53657282,4725.2,4725.1,0.004]
[1755955389531,31.77532473,4725.2,4725.1,0.004]
[1755955389819,5.7764469,4724.9,4724.8,0.02]
[1755955390027,11.63523554,4724.9,4724.8,0.02]
[1755955390185,10.4973287,4724.9,4724.8,0.02]
[1755955390386,11.63494526,4724.9,4724.8,0.02]
[1755955390600,11.71980126,4724.9,4724.8,0.02]
[1755955390933,12.63986168,4724.9,4724.8,0.02]
[1755955391831,12.63959642,4724.9,4724.8,0.02]
[1755955392142,1.273,4724.7,4724.1,0.004]
[1755955392288,3.63965846,4724.2,4724.1,0.004]
[1755955392492,14.918653,4724.2,4724.1,0.004]
[1755955392892,15.461653,4724.2,4724.1,0.004]
[1755955393596,14.70345504,4724.2,4724.1,0.004]
[1755955394016,15.03475749,4724.2,4724.1,0.004]
[1755955394723,14.93005749,4724.2,4724.1,0.742]
[1755955394937,14.81150498,4724.2,4724.1,0.742]
[1755955397225,14.81150498,4724.2,4724.1,0.3046]
[1755955397505,15.02883315,4724.2,4724.1,0.004]
[1755955397846,0.66,4723.9,4722.2,0.4374]
[1755955398017,16.27213101,4722.9,4720.8,0.02]
[1755955398203,27.18591845,4722.9,4722.8,0.3206]
[1755955398409,27.18585205,4722.9,4722.8,0.3206]
[1755955398605,14.81377833,4722.9,4722.8,0.7633]
[1755955398812,16.93112148,4722.9,4722.8,0.7633]
[1755955399309,14.81377833,4722.9,4722.8,0.7633]
[1755955399907,11.27077833,4722.9,4722.8,0.7633]
[1755955400220,14.35712406,4722.9,4722.8,0.7633]
[1755955400418,13.50005729,4722.9,4722.8,0.7633]
[1755955400616,14.16005729,4722.9,4722.8,0.7633]
[1755955400835,13.50005729,4722.9,4722.8,0.7633]
[1755955401031,1.712881,4722.9,4722.8,0.7633]
[1755955401219,5.171,4722.9,4722.8,0.7633]
[1755955401546,6.467497,4722.9,4722.8,0.7633]
[1755955401720,6.13882274,4722.9,4722.8,0.69918153]
[1755955401915,1.95932574,4722.9,4722.8,0.69918153]
[1755955402117,5.50232574,4722.9,4722.8,0.69918153]
[1755955406013,6.16232574,4722.9,4722.8,0.69918153]
[1755955407936,6.26792574,4722.9,4722.8,0.69918153]
[1755955408433,5.60792574,4722.9,4722.8,0.69918153]
[1755955408741,5.55060153,4722.9,4722.8,0.69918153]
[1755955411541,5.21927579,4722.9,4722.8,0.69918153]
[1755955411744,5.87927579,4722.9,4722.8,0.25648153]
[1755955411916,6.46720337,4722.9,4722.8,0.25648153]
[1755955412119,5.87927579,4722.9,4722.8,0.69918153]
[1755955412344,6.51579479,4722.9,4722.8,0.69918153]
[1755955418554,0.66,4722.8,4722.3,0.004]
[1755955418848,0.66,4722.8,4722.7,0.3044]
[1755955419029,4.205,4722.8,4722.7,0.7471]
[1755955419221,0.4427,4722.8,4722.7,0.7471]
[1755955419423,4.0933,4722.8,4722.7,0.7471]
[1755955419623,3.6506,4722.8,4722.7,0.7471]
[1755955420757,3.98192442,4722.8,4722.7,0.7471]
[1755955423157,4.64192442,4722.8,4722.7,0.3044]
[1755955423452,5.27838142,4722.8,4722.4,0.4427]
[1755955423622,5.17278142,4722.8,4722.4,0.4427]
[1755955423823,0.1056,4722.5,4722.3,0.004]
[1755955424052,3.544,4722.4,4722.3,0.004]
[1755955424248,3.544,4722.4,4722.3,0.3084]
[1755955424622,3.544,4722.4,4722.3,0.7511]
[1755955427644,0.1056,4722.5,4722.3,0.7511]
[1755955427860,3.544,4722.4,4722.3,0.3084]
[1755955428567,3.544,4722.4,4722.3,0.7503]
[1755955429250,0.1056,4722.5,4722.3,0.7503]
[1755955429561,0.1056,4723.0,4722.4,0.4419]
[1755955429772,3.6496,4723.0,4722.9,0.3083]
[1755955430137,3.6496,4723.0,4722.9,0.7502]
[1755955431170,1.628,4723.7,4722.9,0.7502]
[1755955431372,0.1056,4723.5,4722.9,0.4139]
[1755955431547,0.1056,4723.5,4723.0,0.4419]
[1755955431735,0.1056,4723.5,4723.4,0.3083]
[1755955431939,0.1056,4723.5,4723.4,0.7502]
[1755955433340,3.544,4723.6,4723.4,0.7502]
[1755955433535,3.544,4723.6,4723.4,0.3083]
[1755955433772,3.544,4723.6,4723.5,0.4419]
[1755955433944,3.544,4723.6,4723.5,0.7502]
[1755955435401,3.6496,4723.7,4723.5,0.7502]
[1755955435758,3.6496,4723.7,4723.6,0.4419]
[1755955435952,3.6496,4723.7,4723.6,0.7502]
[1755955438656,3.6486,4723.7,4723.6,0.7502]
[1755955441078,3.543,4723.7,4723.6,0.7502]
[1755955441957,3.543,4723.7,4723.6,0.3083]
[1755955442157,3.543,4723.7,4723.2,0.4419]
[1755955442363,3.543,4723.7,4723.1,0.1056]
[1755955442952,3.543,4723.7,4723.1,0.5475]
[1755955443401,3.543,4723.7,4723.1,0.1056]
[1755955443600,0.1056,4723.6,4723.0,0.4419]
[1755955443801,0.1056,4723.6,4723.5,0.3083]
[1755955444205,0.1056,4723.6,4723.5,0.7502]
[1755955444360,0.1056,4723.6,4722.9,0.1056]
[1755955444559,0.2069,4723.6,4723.0,0.4419]
[1755955445931,0.2069,4723.6,4722.9,0.1056]
[1755955446105,0.2069,4723.6,4722.7,0.4419]
[1755955446301,0.2069,4723.6,4722.7,0.5475]
[1755955448624,1.628,4723.5,4722.7,0.1056]
[1755955448822,0.1056,4722.9,4722.3,0.4459]
[1755955449066,3.543,4722.8,4722.3,0.4459]
[1755955449269,3.543,4722.8,4722.3,0.004]
[1755955449559,3.543,4722.8,4722.4,0.4419]
[1755955449790,3.543,4722.8,4722.3,0.004]
[1755955450048,0.1056,4722.5,4722.3,0.004]
[1755955450249,0.1013,4722.4,4722.3,0.004]
[1755955452376,0.6821,4722.4,4722.3,0.004]
[1755955452654,1.1122,4722.4,4722.3,0.004]
[1755955453036,0.6821,4722.4,4722.3,0.004]
[1755955454676,1.124,4722.4,4722.3,0.004]
[1755955454974,0.4419,4722.4,4722.3,0.004]
[1755955455130,3.6486,4722.4,4722.3,0.7542]
[1755955456122,0.1056,4722.5,4722.3,0.7542]
[1755955456327,3.6486,4722.5,4722.4,0.4419]
[1755955456539,3.6486,4722.5,4722.4,0.7502]
[1755955460985,3.6486,4722.5,4722.4,0.3083]
[1755955461545,3.6486,4722.5,4722.4,0.7664]
[1755955461857,1.95934489,4722.6,4722.4,0.7664]
[1755955462161,3.543,4722.6,4722.4,0.7664]
[1755955462478,3.6486,4722.9,4722.5,0.4581]
[1755955462646,3.6486,4722.9,4722.8,0.2883]
[1755955462846,3.6486,4722.9,4722.8,0.7464]
[1755955463076,3.7476,4722.9,4722.3,0.004]
[1755955463265,0.1056,4722.6,4722.3,0.004]
[1755955463876,0.1056,4722.6,4722.3,0.4621]
[1755955464249,0.1023,4722.4,4722.3,0.004]
[1755955464760,3.543,4722.5,4722.3,0.004]
[1755955465379,0.1056,4722.4,4722.3,0.004]
[1755955466280,0.51415304,4722.4,4721.8,0.01937702]
[1755955466454,0.1056,4722.0,4721.8,0.01937702]
[1755955466659,3.544,4721.9,4721.8,0.01937702]
[1755955468798,3.544,4721.9,4721.8,0.30767702]
[1755955469299,3.544,4721.9,4721.8,0.76577702]
[1755955470516,0.1056,4722.0,4721.8,0.76577702]
[1755955470813,3.6486,4722.0,4721.9,0.4581]
[1755955470984,3.6486,4722.0,4721.9,0.7464]
[1755955473601,3.6486,4722.0,4721.9,0.2883]
[1755955473792,3.7476,4722.0,4721.8,0.01937702]
[1755955478993,3.6486,4722.0,4721.8,0.47747702]
[1755955479205,3.6486,4722.0,4721.9,0.7464]
[1755955479998,0.1056,4722.0,4721.9,0.7464]
[1755955480194,3.543,4722.1,4721.9,0.7464]
[1755955480392,3.543,4722.1,4722.0,0.4581]
[1755955480723,3.543,4722.1,4722.0,0.7464]
[1755955482426,0.1066,4722.3,4722.0,0.7464]
[1755955482632,0.1066,4722.3,4722.1,0.4581]
[1755955482799,0.001,4722.3,4722.2,0.2883]
[1755955482995,0.001,4722.3,4722.2,0.3939]
[1755955483234,0.001,4722.3,4722.2,0.852]
[1755955483750,0.001,4722.3,4722.2,3.852]
[1755955484328,0.001,4722.3,4722.2,4.488276]
[1755955486142,0.001,4722.3,4722.2,11.98306386]
[1755955486330,0.001,4722.3,4722.2,14.98306386]
[1755955486694,0.001,4722.3,4722.2,0.1056]
[1755955486695,0.3043,4722.3,4722.2,0.1056]
[1755955486895,0.3043,4722.3,4722.0,0.1056]
[1755955488640,0.3043,4722.3,4721.8,0.02337702]
[1755955488838,0.3043,4722.3,4721.8,0.12897702]
[1755955490447,0.3043,4722.3,4721.8,0.58287702]
[1755955490751,0.001,4722.3,4721.9,0.4539]
[1755955491048,0.001,4722.3,4722.0,0.4539]
[1755955493048,0.001,4722.3,4722.2,0.2943]
[1755955494438,0.001,4722.3,4722.2,0.7482]
[1755955494635,0.001,4722.3,4722.2,0.8538]
[1755955496151,0.001,4722.3,4722.2,0.1056]
[1755955496152,0.3119,4722.3,4722.2,0.1056]
[1755955496724,0.3119,4722.3,4722.1,0.004]
[1755955502332,3.8579,4722.3,4722.1,0.004]
[1755955502540,2.68435,4722.2,4722.1,0.004]
[1755955502771,2.99525,4722.2,4722.1,0.004]
[1755955502946,3.00035,4722.2,4722.1,0.004]
[1755955503249,3.48981539,4722.2,4722.1,0.004]
[1755955503466,3.3317385,4722.2,4722.1,0.004]
[1755955503966,3.3266385,4722.2,4722.1,0.004]
[1755955504166,6.8746385,4722.2,4722.1,0.004]
[1755955505160,6.8797385,4722.2,4722.1,0.004]
[1755955507057,6.8746385,4722.2,4722.1,0.004]
[1755955507645,2.6666385,4722.2,4722.1,0.004]
[1755955507840,2.33525,4722.2,4722.1,0.004]
[1755955508046,5.88225,4722.2,4722.1,0.004]
[1755955508557,6.10485,4722.2,4722.1,0.004]
[1755955508756,6.76485,4722.2,4722.1,0.004]
[1755955509483,7.09623053,4722.2,4722.1,0.004]
[1755955511169,6.87363053,4722.2,4722.1,0.004]
[1755955512382,7.09623053,4722.2,4722.1,0.004]
[1755955512881,7.18111053,4722.2,4722.1,0.004]
[1755955513656,6.95851053,4722.2,4722.1,0.004]
[1755955518951,2.46133053,4722.2,4722.1,0.7546]
[1755955519151,6.00633053,4722.2,4722.1,0.7546]
[1755955519378,6.00633053,4722.2,4722.1,0.3144]
[1755955520494,6.00633053,4722.2,4722.1,0.004]
[1755955521589,5.67495,4722.2,4722.1,0.004]
[1755955522992,5.89755,4722.2,4722.1,0.004]
[1755955524290,6.86675,4722.2,4722.1,0.004]
[1755955524459,6.55755,4722.2,4722.1,0.004]
[1755955524663,6.642424,4722.2,4722.1,0.004]
[1755955526690,6.419824,4722.2,4722.1,0.004]
[1755955528265,6.643324,4722.2,4722.1,0.004]
[1755955528465,6.643324,4722.2,4722.1,0.00182371]
[1755955528697,6.419824,4722.2,4722.1,0.00182371]
[1755955529989,2.12995,4722.2,4722.1,0.75242371]
[1755955530193,5.2776,4722.2,4722.1,0.75242371]
[1755955530899,5.2776,4722.2,4722.1,0.31222371]
[1755955531089,5.60896465,4722.2,4722.1,0.00182371]
[1755955532097,5.80661207,4722.2,4722.1,0.00182371]
[1755955532700,5.80661207,4722.2,4722.1,0.31222371]
[1755955532900,5.60896465,4722.2,4722.1,0.75242371]
[1755955533100,5.60896465,4722.2,4722.1,0.31222371]
[1755955534214,5.80657565,4722.2,4722.1,0.31222371]
[1755955534414,5.60896465,4722.2,4722.1,0.31222371]
[1755955534615,5.60896465,4722.2,4722.1,0.75242371]
[1755955537027,2.06496465,4722.2,4722.1,0.75242371]
[1755955537212,5.60896465,4722.2,4722.1,0.75242371]
[1755955538421,0.001,4722.3,4722.1,0.75242371]
[1755955538619,0.001,4722.3,4722.2,0.4402]
[1755955538803,0.001,4722.3,4722.2,0.7506]
[1755955539729,0.001,4722.3,4722.2,0.8562]
[1755955548836,0.001,4722.3,4722.2,0.941031]
[1755955550155,0.001,4722.3,4722.2,6.05868802]
[1755955550746,0.001,4722.8,4722.2,6.05868802]
[1755955550747,0.001,4722.8,4722.7,2.11743282]
[1755955551032,0.001,4723.3,4722.8,3.0]
[1755955551215,0.001,4723.3,4723.2,13.80348786]
[1755955551730,0.2904,4723.3,4723.1,3.543]
[1755955551912,0.2904,4723.3,4723.2,0.1056]
[1755955552110,0.2904,4723.3,4723.0,0.1056]
[1755955552559,0.5342,4723.3,4723.0,0.1056]
[1755955553635,0.2904,4723.3,4723.0,0.1056]
[1755955554164,0.2904,4723.3,4723.0,0.5412]
[1755955554165,0.001,4723.3,4723.0,0.5412]
[1755955554852,0.0999,4723.1,4723.0,0.1056]
[1755955556719,0.001,4723.3,4723.0,0.1056]
[1755955557121,0.001,4723.3,4723.0,0.5412]
[1755955557471,0.001,4723.3,4723.0,0.1056]
[1755955557684,0.001,4723.3,4723.0,0.5412]
[1755955558946,0.001,4723.3,4723.0,0.1056]
[1755955559173,0.001,4723.3,4723.1,0.4356]
[1755955559354,0.001,4723.3,4723.2,0.3087]
[1755955559544,0.001,4723.3,4723.2,0.7443]
[1755955560679,0.001,4723.3,4723.2,0.3087]
[1755955561079,0.0053,4723.3,4723.0,0.1056]
[1755955562143,0.001,4723.3,4723.2,0.3087]
[1755955562370,0.001,4723.3,4723.2,3.8507]
[1755955562680,0.001,4723.3,4723.2,7.2863]
[1755955562979,0.001,4723.3,4723.2,8.0519]
[1755955563166,0.001,4723.7,4723.6,10.49478786]
[1755955563366,0.001,4723.7,4723.6,10.80348786]
[1755955563788,0.001,4723.7,4723.6,11.23908786]
[1755955563981,0.001,4723.7,4723.6,11.34468786]
[1755955564181,0.001,4723.7,4723.6,17.88668786]
[1755955566384,0.001,4723.7,4723.6,17.98986351]
[1755955567092,0.001,4723.7,4723.6,17.88668786]
[1755955567388,0.001,4723.7,4723.6,14.34468786]
[1755955567589,0.001,4723.7,4723.6,7.3919]
[1755955567960,0.001,4723.7,4723.6,3.4143]
[1755955568189,0.001,4723.7,4723.6,3.9563]
[1755955568362,0.001,4723.7,4723.6,4.3919]
[1755955569662,0.001,4723.7,4723.6,3.9563]
[1755955570276,0.001,4723.7,4723.6,3.6476]
[1755955572236,0.1001,4723.7,4723.6,3.6476]
[1755955573616,0.001,4723.7,4723.6,7.3919]
[1755955576688,0.001,4723.7,4723.6,9.6239]
[1755955576893,0.001,4723.7,4723.6,7.3919]
[1755955578507,0.001,4723.7,4723.6,7.476699]
[1755955578816,0.001,4723.7,4723.6,18.00748686]
[1755955579910,0.001,4723.7,4723.6,17.45008786]
[1755955580322,0.001,4723.7,4723.6,14.45008786]
[1755955580509,0.001,4723.7,4723.6,3.1056]
[1755955580718,0.0982,4723.7,4723.6,6.6466]
[1755955580924,0.5316,4723.7,4723.6,3.6466]
[1755955582003,0.5316,4723.7,4723.6,3.541]
[1755955582534,0.5316,4723.7,4723.4,0.1056]
[1755955582740,0.0982,4723.7,4723.3,3.541]
[1755955583034,0.4368,4723.6,4723.3,3.541]
[1755955583222,0.0982,4723.7,4723.3,3.541]
[1755955583223,0.001,4723.7,4723.3,3.541]
[1755955583426,0.099,4723.4,4723.3,3.541]
[1755955583735,0.5324,4723.4,4723.3,3.541]
[1755955584726,0.5324,4723.4,4723.3,3.50166989]
[1755955585127,0.099,4723.4,4723.3,3.50166989]
[1755955585536,0.001,4723.7,4723.3,3.50166989]
[1755955585726,0.1023,4723.4,4723.3,3.50166989]
[1755955588865,0.001,4723.7,4723.3,3.50166989]
[1755955589347,0.099,4723.4,4723.3,3.50166989]
[1755955590764,0.5324,4723.4,4723.1,1.628]
[1755955591066,0.099,4723.4,4723.3,3.541]
[1755955591530,0.5324,4723.4,4723.3,3.541]
[1755955591726,0.099,4723.4,4723.3,3.541]
[1755955592143,0.001,4723.7,4723.3,3.541]
[1755955592519,0.0043,4723.4,4723.3,3.541]
[1755955592921,0.001,4723.7,4723.3,3.541]
[1755955593536,0.0043,4723.4,4723.3,3.541]
[1755955596072,0.001,4723.7,4723.3,3.541]
[1755955596941,0.001,4723.7,4723.3,3.545]
[1755955597144,0.0053,4723.4,4723.3,3.545]
[1755955599075,0.001,4723.4,4723.3,3.545]
[1755955599279,0.001,4723.4,4723.3,4.321]
[1755955599482,0.001,4723.4,4723.3,3.8484]
[1755955599648,0.001,4723.4,4723.3,3.545]
[1755955600351,0.1,4723.4,4723.3,3.545]
[1755955601481,0.001,4723.4,4723.3,3.545]
[1755955602980,0.001,4723.4,4723.3,3.8484]
[1755955603687,0.001,4723.4,4723.3,3.545]
[1755955605066,0.001,4723.4,4723.3,4.321]
[1755955607488,0.001,4723.4,4723.3,3.8484]
[1755955607652,0.001,4723.4,4723.3,3.545]
[1755955609784,0.001,4723.4,4723.3,4.3308]
[1755955610564,0.001,4723.4,4723.3,4.4364]
[1755955614007,0.001,4723.4,4723.3,7.4364]
[1755955614963,0.001,4723.4,4723.3,9.55356384]
[1755955615179,0.001,4723.4,4723.3,10.21356384]
[1755955616904,0.001,4723.4,4723.3,10.29836284]
[1755955620183,0.001,4723.7,4723.6,2.11702938]
[1755955620503,0.001,4723.9,4723.8,5.77693975]
[1755955620701,0.001,4723.9,4723.8,13.89413975]
[1755955620995,0.001,4725.7,4723.9,3.66]
[1755955621203,0.001,4725.7,4724.3,16.69330356]
[1755955621414,0.001,4725.7,4724.3,20.23430356]
[1755955621575,0.001,4725.7,4724.3,20.70390356]
[1755955621976,0.001,4725.7,4724.3,18.67196986]
[1755955622176,0.001,4725.7,4724.3,17.45758786]
[1755955622177,0.4368,4725.5,4724.3,17.45758786]
[1755955622618,0.4368,4725.5,4724.3,17.92718786]
[1755955623377,0.4368,4725.3,4724.3,17.14138786]
[1755955623796,0.3067,4724.4,4724.3,3.1056]
[1755955624007,0.3067,4724.4,4724.3,6.6466]
[1755955624891,0.3067,4724.4,4724.3,3.1056]
[1755955625092,0.3067,4724.4,4724.3,6.6456]
[1755955626823,0.001,4724.4,4724.3,6.6456]
[1755955629318,0.001,4724.4,4724.3,17.92618786]
[1755955630922,0.001,4724.4,4724.3,20.04290356]
[1755955631288,0.001,4724.9,4724.4,3.66]
[1755955631485,0.001,4724.9,4724.6,5.43278129]
[1755955631709,0.001,4724.9,4724.6,5.53838129]
[1755955632105,0.001,4724.9,4724.6,6.00798129]
[1755955632511,0.001,4725.4,4724.7,3.66]
[1755955632744,0.001,4725.4,4725.3,13.81098786]
[1755955632945,0.001,4725.4,4725.3,19.08358786]
[1755955633334,0.001,4725.4,4725.3,19.55318786]
[1755955635954,0.001,4725.4,4725.3,22.32945561]
[1755955636493,0.001,4725.4,4725.3,22.41421461]
[1755955636640,0.001,4725.4,4725.3,20.29694686]
[1755955636829,0.001,4725.4,4725.3,20.21218786]
[1755955637560,0.001,4725.4,4725.3,22.32845561]
[1755955639556,0.001,4725.4,4725.3,20.21218786]
[1755955639752,0.001,4725.4,4725.3,15.88738786]
[1755955639943,0.1045,4725.4,4725.3,15.22738786]
[1755955640303,0.1045,4725.4,4725.3,8.2716]
[1755955640447,0.1045,4725.4,4725.3,4.7326]
[1755955640641,0.5335,4725.4,4725.3,8.2716]
[1755955641851,0.5335,4725.4,4725.3,0.1056]
[1755955642053,0.5335,4725.4,4725.3,3.6446]
[1755955646356,0.1045,4725.4,4725.3,3.6446]
[1755955646990,0.001,4725.4,4725.3,6.8408]
[1755955647289,0.001,4725.4,4725.3,7.4115]
[1755955649082,0.001,4725.4,4725.3,6.9464]
[1755955649282,0.001,4725.4,4725.3,6.6446]
[1755955649591,0.001,4725.4,4725.3,6.9464]
[1755955650787,0.0054,4725.4,4725.3,6.6446]
[1755955654014,0.441,4725.4,4725.3,3.6446]
[1755955654184,0.441,4725.4,4725.2,3.539]
[1755955654385,0.4356,4725.3,4725.2,3.539]
[1755955654610,0.5356,4725.3,4725.2,3.539]
[1755955657486,0.1,4725.3,4725.2,3.539]
[1755955657886,0.1,4725.3,4725.2,3.6446]
[1755955662218,0.001,4725.4,4725.2,3.6446]
[1755955663099,0.001,4725.4,4725.3,0.7669]
[1755955663618,0.001,4725.4,4725.3,3.8725]
[1755955666009,0.001,4725.4,4725.3,5.98876775]
[1755955666905,0.001,4725.4,4725.3,3.8725]
[1755955667145,0.001,4725.4,4725.3,5.98876775]
[1755955668948,0.001,4725.4,4725.3,4.4115]
[1755955669446,0.001,4725.4,4725.3,9.52776775]
[1755955670726,0.001,4725.4,4725.3,10.18776775]
[1755955672341,0.001,4725.4,4725.3,3.4074]
[1755955672512,0.001,4725.4,4725.3,9.52836775]
[1755955673052,0.001,4725.4,4725.3,7.4121]
[1755955673618,0.001,4725.4,4725.3,7.031169]
[1755955674019,0.001,4725.4,4725.3,6.9464]
[1755955674429,0.001,4725.4,4725.3,7.4121]
[1755955674641,0.001,4725.4,4725.3,9.52836775]
[1755955675674,0.001,4725.4,4725.3,7.4121]
[1755955675965,0.001,4725.4,4725.3,9.61313675]
[1755955676351,0.001,4725.4,4725.3,10.27313675]
[1755955679031,0.001,4725.4,4725.3,7.031169]
[1755955679668,0.001,4725.4,4725.3,10.989369]
[1755955679871,0.001,4725.4,4725.3,10.9046]
[1755955680167,0.001,4725.4,4725.3,11.1993]
[1755955680571,0.001,4725.4,4725.3,13.78126775]
[1755955680934,0.001,4725.4,4725.3,14.44126775]
[1755955681333,0.001,4725.4,4725.3,14.87906775]
[1755955684067,0.001,4725.7,4725.5,0.66]
[1755955684278,0.001,4725.7,4725.6,9.7144334]
[1755955684447,0.001,4725.7,4725.6,13.9744334]
[1755955684647,0.001,4725.9,4725.7,2.77608862]
[1755955684871,0.001,4726.2,4726.1,16.27069738]
[1755955685065,0.001,4726.2,4726.1,20.20899738]
[1755955685279,0.001,4726.2,4726.1,20.67469738]
[1755955685586,0.001,4726.2,4726.1,25.01943938]